[Event "Norwegian Championship 2022"]
[Site "Kongsvinger, Norway"]
[Date "2022.07.10"]
[Round "3"]
[White "Sjøberg, Isak"]
[Black "Stanford, Maxim Barth"]
[Result "1/2-1/2"]
[Board "7"]
[TimeControl "40/5400+30:1800+30"]
[WhiteTitle "FM"]
[BlackTitle "IM"]
[WhiteFideId "1521640"]
[BlackFideId "408280"]
[WhiteElo "2308"]
[BlackElo "2308"]

1. e4 {[%clk 01:30:58]} c5 {[%clk 01:30:50]} {[%emt 00:00:10]} 2. Nf3 {[%clk
01:30:47]} {[%emt 00:00:41]} g6 {[%clk 01:31:05]} {[%emt 00:00:15]} 3. c3
{[%clk 01:30:18]} {[%emt 00:00:59]} d5 {[%clk 01:31:15]} {[%emt 00:00:20]} 4.
e5 {[%clk 01:30:39]} {[%emt 00:00:08]} Nc6 {[%clk 01:29:24]} {[%emt 00:02:21]}
5. d4 {[%clk 01:30:05]} {[%emt 00:01:03]} cxd4 {[%clk 01:26:04]} {[%emt
00:03:51]} 6. cxd4 {[%clk 01:29:18]} {[%emt 00:01:17]} Bg4 {[%clk 01:25:43]}
{[%emt 00:00:51]} 7. Bb5 {[%clk 01:24:01]} {[%emt 00:05:47]} Qb6 {[%clk
01:21:58]} {[%emt 00:04:15]} 8. Nc3 {[%clk 01:21:02]} {[%emt 00:03:29]} e6
{[%clk 01:20:44]} {[%emt 00:01:44]} 9. Be3 {[%clk 01:02:45]} {[%emt 00:18:48]}
Nge7 {[%clk 01:18:35]} {[%emt 00:02:38]} 10. O-O {[%clk 00:58:11]} {[%emt
00:05:05]} Bg7 {[%clk 01:14:52]} {[%emt 00:04:14]} 11. h3 {[%clk 00:49:01]}
{[%emt 00:09:40]} Bxf3 {[%clk 01:14:51]} {[%emt 00:00:31]} 12. Qxf3 {[%clk
00:49:24]} {[%emt 00:00:07]} O-O {[%clk 01:14:51]} {[%emt 00:00:30]} 13. Rfd1
{[%clk 00:45:44]} {[%emt 00:04:10]} Rac8 {[%clk 01:11:13]} {[%emt 00:04:09]} 14.
Bxc6 {[%clk 00:41:35]} {[%emt 00:04:39]} Rxc6 {[%clk 01:06:00]} {[%emt
00:05:43]} 15. Na4 {[%clk 00:36:56]} {[%emt 00:05:09]} Qc7 {[%clk 00:59:23]}
{[%emt 00:07:06]} 16. Bg5 {[%clk 00:32:59]} {[%emt 00:04:27]} b5 {[%clk
00:54:15]} {[%emt 00:05:39]} 17. Nc5 {[%clk 00:29:46]} {[%emt 00:03:43]} a5
{[%clk 00:49:48]} {[%emt 00:04:58]} 18. Rac1 {[%clk 00:26:04]} {[%emt
00:04:13]} Nf5 {[%clk 00:44:25]} {[%emt 00:05:52]} 19. Qd3 {[%clk 00:25:51]}
{[%emt 00:00:43]} Rc8 {[%clk 00:39:24]} {[%emt 00:05:32]} 20. Nb3 {[%clk
00:22:19]} {[%emt 00:04:03]} Rc4 {[%clk 00:35:28]} {[%emt 00:04:25]} 21. g4
{[%clk 00:22:16]} {[%emt 00:00:32]} Ne7 {[%clk 00:35:17]} {[%emt 00:00:42]} 22.
Qe3 {[%clk 00:16:34]} {[%emt 00:06:12]} Nc6 {[%clk 00:31:31]} {[%emt 00:04:16]}
23. Nd2 {[%clk 00:16:33]} {[%emt 00:00:31]} Rxc1 {[%clk 00:31:52]} {[%emt
00:00:08]} 24. Rxc1 {[%clk 00:16:59]} {[%emt 00:00:05]} Qb6 {[%clk 00:25:11]}
{[%emt 00:07:11]} 25. Nb3 {[%clk 00:17:15]} {[%emt 00:00:13]} a4 {[%clk
00:22:25]} {[%emt 00:03:16]} 26. Nc5 {[%clk 00:17:41]} {[%emt 00:00:04]} Qa7
{[%clk 00:22:19]} {[%emt 00:00:36]} 27. Kg2 {[%clk 00:16:56]} {[%emt 00:01:15]}
Bf8 {[%clk 00:21:25]} {[%emt 00:01:24]} 28. Bh6 {[%clk 00:14:31]} {[%emt
00:02:55]} Be7 {[%clk 00:20:01]} {[%emt 00:01:53]} 29. Bg5 {[%clk 00:14:21]}
{[%emt 00:00:41]} Bf8 {[%clk 00:15:51]} {[%emt 00:04:40]} 30. Bh6 {[%clk
00:14:11]} {[%emt 00:00:40]} Be7 {[%clk 00:15:35]} {[%emt 00:00:45]} 31. h4
{[%clk 00:11:46]} {[%emt 00:02:55]} Rc7 {[%clk 00:14:58]} {[%emt 00:01:08]} 32.
Bg5 {[%clk 00:11:44]} {[%emt 00:00:32]} Bf8 {[%clk 00:14:44]} {[%emt 00:00:43]}
33. Bh6 {[%clk 00:10:02]} {[%emt 00:02:12]} Be7 {[%clk 00:12:21]} {[%emt
00:02:53]} 34. Bg5 {[%clk 00:10:01]} {[%emt 00:00:31]} Bf8 {[%clk 00:12:39]}
{[%emt 00:00:12]} 35. Bh6 {[%clk 00:10:24]} {[%emt 00:00:08]} Be7 {[%clk
00:11:05]} {[%emt 00:02:03]} 1/2-1/2

[Event "Norwegian Championship 2022"]
[Site "Kongsvinger, Norway"]
[Date "2022.07.11"]
[Round "4"]
[White "Elsness, Frode"]
[Black "Agdestein, Simen"]
[Result "0-1"]
[Board "1"]
[TimeControl "40/5400+30:1800+30"]
[WhiteTitle "IM"]
[BlackTitle "GM"]
[WhiteFideId "1501100"]
[BlackFideId "1500015"]
[WhiteElo "2464"]
[BlackElo "2559"]

1. d4 {[%clk 01:30:42]} {[%emt 00:00:17]} d5 {[%clk 01:30:54]} {[%emt
00:00:06]} 2. c4 {[%clk 01:30:57]} {[%emt 00:00:14]} e6 {[%clk 01:31:03]}
{[%emt 00:00:21]} 3. Nc3 {[%clk 01:31:21]} {[%emt 00:00:06]} c6 {[%clk
01:30:21]} {[%emt 00:01:13]} 4. e3 {[%clk 01:29:57]} {[%emt 00:01:54]} Nf6
{[%clk 01:30:28]} {[%emt 00:00:23]} 5. Nf3 {[%clk 01:29:53]} {[%emt 00:00:33]}
Nbd7 {[%clk 01:30:55]} {[%emt 00:00:03]} 6. Qc2 {[%clk 01:29:04]} {[%emt
00:01:19]} Bd6 {[%clk 01:31:18]} {[%emt 00:00:07]} 7. b3 {[%clk 01:28:18]}
{[%emt 00:01:16]} O-O {[%clk 01:31:38]} {[%emt 00:00:10]} 8. Be2 {[%clk
01:28:05]} {[%emt 00:00:43]} b6 {[%emt 00:01:26]} 9. O-O {[%clk 01:27:27]}
{[%emt 00:00:13]} Bb7 {[%clk 01:31:52]} {[%emt 00:00:15]} 10. Bb2 {[%emt
00:01:09]} Qe7 {[%emt 00:01:14]} 11. Rad1 {[%emt 00:02:04]} Rfe8 {[%clk
01:21:47]} {[%emt 00:10:07]} 12. Rfe1 {[%clk 01:24:35]} {[%emt 00:00:52]} Rad8
{[%clk 01:17:44]} {[%emt 00:04:33]} 13. Bf1 {[%clk 01:19:25]} {[%emt 00:05:40]}
Bb4 {[%clk 01:11:10]} {[%emt 00:07:05]} 14. a3 {[%clk 01:14:21]} {[%emt
00:05:33]} Bxa3 {[%clk 01:09:47]} {[%emt 00:01:54]} 15. Bxa3 {[%clk 01:14:09]}
{[%emt 00:00:43]} Qxa3 {[%clk 01:10:14]} {[%emt 00:00:03]} 16. Ra1 {[%clk
01:14:12]} {[%emt 00:00:27]} Qd6 {[%clk 01:09:57]} {[%emt 00:00:46]} 17. Rxa7
{[%clk 01:14:35]} {[%emt 00:00:08]} Qb8 {[%clk 01:09:35]} {[%emt 00:00:52]} 18.
Rea1 {[%clk 01:12:53]} {[%emt 00:02:11]} dxc4 {[%clk 01:05:58]} {[%emt
00:04:07]} 19. bxc4 {[%clk 01:09:06]} {[%emt 00:04:18]} c5 {[%clk 01:01:45]}
{[%emt 00:04:43]} 20. d5 {[%clk 01:00:12]} {[%emt 00:09:23]} exd5 {[%clk
01:00:28]} {[%emt 00:01:48]} 21. cxd5 {[%clk 00:59:54]} {[%emt 00:00:48]} Nxd5
{[%clk 00:58:23]} {[%emt 00:02:34]} 22. Nxd5 {[%clk 00:54:14]} {[%emt
00:06:11]} Bxd5 {[%clk 00:58:34]} {[%emt 00:00:19]} 23. Bb5 {[%clk 00:45:01]}
{[%emt 00:09:42]} Re7 {[%clk 00:52:17]} {[%emt 00:06:48]} 24. Qa4 {[%clk
00:36:48]} {[%emt 00:08:43]} Bb7 {[%clk 00:51:32]} {[%emt 00:01:15]} 25. Qb3
{[%clk 00:31:17]} {[%emt 00:06:00]} Ne5 {[%clk 00:42:54]} {[%emt 00:09:09]} 26.
Nxe5 {[%clk 00:26:35]} {[%emt 00:05:13]} Qxe5 {[%clk 00:42:59]} {[%emt
00:00:24]} 27. Bc4 {[%clk 00:23:52]} {[%emt 00:03:12]} Qf6 {[%clk 00:38:37]}
{[%emt 00:04:53]} 28. f3 {[%clk 00:19:25]} {[%emt 00:04:57]} h5 {[%clk
00:34:10]} {[%emt 00:04:56]} 29. Rb1 {[%clk 00:15:45]} {[%emt 00:04:10]} Rd2
{[%clk 00:30:18]} {[%emt 00:04:22]} 30. Ra2 {[%clk 00:11:23]} {[%emt 00:04:52]}
Rxa2 {[%clk 00:26:38]} {[%emt 00:04:11]} 31. Qxa2 {[%clk 00:11:47]} {[%emt
00:00:06]} Rxe3 {[%clk 00:25:44]} {[%emt 00:01:24]} 32. Qd2 {[%clk 00:11:06]}
{[%emt 00:01:12]} Re7 {[%clk 00:14:00]} {[%emt 00:12:14]} 33. h3 {[%clk
00:07:00]} {[%emt 00:04:36]} Kh7 {[%clk 00:11:32]} {[%emt 00:02:58]} 34. Qd3+
{[%clk 00:05:26]} {[%emt 00:02:04]} g6 {[%clk 00:11:23]} {[%emt 00:00:39]} 35.
Kh1 {[%clk 00:05:51]} {[%emt 00:00:05]} Bc8 {[%clk 00:10:14]} {[%emt 00:01:39]}
36. Qb3 {[%clk 00:05:24]} {[%emt 00:00:57]} Bf5 {[%clk 00:09:56]} {[%emt
00:00:47]} 37. Rd1 {[%clk 00:04:23]} {[%emt 00:01:30]} Kg7 {[%clk 00:09:55]}
{[%emt 00:00:33]} 38. Bf1 {[%clk 00:03:39]} {[%emt 00:01:14]} Rd7 {[%clk
00:08:06]} {[%emt 00:02:19]} 39. Re1 {[%clk 00:04:00]} {[%emt 00:00:09]} Rd2
{[%clk 00:05:24]} {[%emt 00:03:12]} 40. Qb5 {[%clk 00:31:35]} {[%emt 00:02:55]}
Bxh3 {[%clk 00:34:47]} {[%emt 00:01:07]} 0-1

[Event "Norwegian Championship 2022"]
[Site "Kongsvinger, Norway"]
[Date "2022.07.11"]
[Round "4"]
[White "Hammer, Jon Ludvig"]
[Black "Hauge, Lars Oskar"]
[Result "1/2-1/2"]
[Board "2"]
[TimeControl "40/5400+30:1800+30"]
[WhiteTitle "GM"]
[BlackTitle "GM"]
[WhiteFideId "1503707"]
[BlackFideId "1509276"]
[WhiteElo "2638"]
[BlackElo "2526"]

1. e4 {[%clk 01:30:58]} {[%emt 00:00:03]} e5 {[%clk 01:27:48]} {[%emt
00:03:11]} 2. Nf3 {[%clk 01:30:42]} {[%emt 00:00:46]} Nc6 {[%clk 01:27:44]}
{[%emt 00:00:34]} 3. Bb5 {[%clk 01:31:09]} {[%emt 00:00:02]} Nf6 {[%clk
01:27:04]} {[%emt 00:01:10]} 4. d3 {[%clk 01:31:35]} {[%emt 00:00:03]} Bc5
{[%clk 01:27:24]} {[%emt 00:00:11]} 5. Bxc6 {[%clk 01:31:57]} {[%emt 00:00:08]}
dxc6 {[%clk 01:27:42]} {[%emt 00:00:12]} 6. Nbd2 {[%clk 01:32:18]} {[%emt
00:00:08]} Be6 {[%clk 01:12:47]} {[%emt 00:15:26]} 7. O-O {[%clk 01:32:33]}
{[%emt 00:00:13]} Bd6 {[%clk 00:58:39]} {[%emt 00:14:40]} 8. Nb3 {[%clk
01:32:54]} {[%emt 00:00:08]} Nd7 {[%clk 00:51:55]} {[%emt 00:07:15]} 9. Na5
{[%clk 01:29:21]} {[%emt 00:04:02]} Rb8 {[%clk 00:42:16]} {[%emt 00:10:09]} 10.
Ng5 {[%clk 01:29:37]} {[%emt 00:00:14]} Qe7 {[%clk 00:39:42]} {[%emt 00:03:04]}
11. Nxe6 {[%clk 01:15:20]} {[%emt 00:14:47]} Qxe6 {[%clk 00:39:59]} {[%emt
00:00:14]} 12. Be3 {[%clk 01:15:22]} {[%emt 00:00:27]} Bc5 {[%clk 00:38:00]}
{[%emt 00:02:30]} 13. Bxc5 {[%clk 00:59:55]} {[%emt 00:15:57]} Nxc5 {[%clk
00:38:09]} {[%emt 00:00:21]} 14. Qh5 {[%clk 00:42:43]} {[%emt 00:17:41]} O-O
{[%clk 00:34:11]} {[%emt 00:04:29]} 15. b3 {[%clk 00:31:21]} {[%emt 00:11:52]}
f6 {[%clk 00:25:54]} {[%emt 00:08:47]} 16. f4 {[%clk 00:27:27]} {[%emt
00:04:24]} Nd7 {[%clk 00:25:52]} {[%emt 00:00:31]} 17. f5 {[%clk 00:22:56]}
{[%emt 00:05:01]} Qd6 {[%clk 00:25:33]} {[%emt 00:00:48]} 18. Nc4 {[%clk
00:23:24]} {[%emt 00:00:03]} Qc5+ {[%clk 00:25:07]} {[%emt 00:00:56]} 19. Rf2
{[%clk 00:23:46]} {[%emt 00:00:07]} b5 {[%clk 00:25:01]} {[%emt 00:00:36]} 20.
Nb2 {[%clk 00:21:25]} {[%emt 00:02:51]} Qd4 {[%clk 00:23:13]} {[%emt 00:02:18]}
21. Rb1 {[%clk 00:21:39]} {[%emt 00:00:16]} c5 {[%clk 00:23:22]} {[%emt
00:00:21]} 22. Qf3 {[%clk 00:19:29]} {[%emt 00:02:40]} Nb6 {[%clk 00:21:30]}
{[%emt 00:02:22]} 23. Nd1 {[%clk 00:18:27]} {[%emt 00:01:31]} c4 {[%clk
00:21:07]} {[%emt 00:00:53]} 24. dxc4 {[%clk 00:17:23]} {[%emt 00:01:35]} bxc4
{[%clk 00:19:22]} {[%emt 00:02:16]} 25. Ne3 {[%clk 00:17:44]} {[%emt 00:00:08]}
cxb3 {[%clk 00:17:25]} {[%emt 00:02:28]} 26. axb3 {[%clk 00:17:58]} {[%emt
00:00:15]} Rbd8 {[%clk 00:17:31]} {[%emt 00:00:24]} 27. g4 {[%clk 00:15:56]}
{[%emt 00:02:32]} Qc3 {[%clk 00:14:14]} {[%emt 00:03:47]} 28. Kg2 {[%clk
00:09:47]} {[%emt 00:06:39]} Rd4 {[%clk 00:14:14]} {[%emt 00:00:30]} 29. Nf1
{[%clk 00:07:29]} {[%emt 00:02:48]} Qxf3+ {[%clk 00:12:03]} {[%emt 00:02:41]}
30. Kxf3 {[%clk 00:07:57]} {[%emt 00:00:01]} c5 {[%clk 00:11:57]} {[%emt
00:00:35]} 31. c4 {[%clk 00:03:07]} {[%emt 00:05:21]} Rfd8 {[%clk 00:11:52]}
{[%emt 00:00:35]} 32. Ne3 {[%clk 00:03:08]} {[%emt 00:00:29]} Rd3 {[%clk
00:12:17]} {[%emt 00:00:05]} 33. Ra2 {[%clk 00:02:35]} {[%emt 00:01:02]} Rc3
{[%clk 00:12:07]} {[%emt 00:00:40]} 34. Rc2 {[%clk 00:01:40]} {[%emt 00:01:25]}
Rcd3 {[%clk 00:06:30]} {[%emt 00:06:08]} 35. Ra2 {[%clk 00:02:08]} {[%emt
00:00:02]} Rc3 {[%clk 00:05:39]} {[%emt 00:01:21]} 36. Rc2 {[%clk 00:02:37]}
{[%emt 00:00:02]} Rcd3 {[%clk 00:05:38]} {[%emt 00:00:30]} 37. Ke2 {[%clk
00:00:39]} {[%emt 00:02:29]} R3d4 {[%clk 00:05:27]} {[%emt 00:00:41]} 38. Rd1
{[%clk 00:01:06]} {[%emt 00:00:03]} Rb8 {[%clk 00:01:33]} {[%emt 00:04:25]} 39.
Rxd4 {[%clk 00:00:34]} {[%emt 00:01:02]} exd4 {[%clk 00:01:55]} {[%emt
00:00:08]} 40. Nd5 {[%clk 00:30:35]} {[%emt 00:00:29]} Nd7 {[%clk 00:32:16]}
{[%emt 00:00:09]} 41. Ra2 {[%clk 00:28:33]} {[%emt 00:02:32]} Rxb3 {[%clk
00:27:33]} {[%emt 00:05:14]} 42. Rxa7 {[%clk 00:26:33]} {[%emt 00:02:30]} Ne5
{[%clk 00:27:08]} {[%emt 00:00:55]} 43. Ra8+ {[%clk 00:26:52]} {[%emt
00:00:10]} 1/2-1/2

[Event "Norwegian Championship 2022"]
[Site "Kongsvinger, Norway"]
[Date "2022.07.11"]
[Round "4"]
[White "Østmoe, Geir Sune Tallaksen"]
[Black "Abdrlauf, Elham"]
[Result "0-1"]
[Board "3"]
[TimeControl "40/5400+30:1800+30"]
[WhiteTitle "IM"]
[BlackTitle "FM"]
[WhiteFideId "1502778"]
[BlackFideId "1533533"]
[WhiteElo "2483"]
[BlackElo "2466"]

1. d4 {[%clk 01:30:51]} {[%emt 00:00:09]} Nf6 {[%clk 01:30:51]} {[%emt
00:00:09]} 2. Nf3 {[%clk 01:31:08]} {[%emt 00:00:13]} d5 {[%clk 01:30:54]}
{[%emt 00:00:27]} 3. c4 {[%clk 01:31:31]} {[%emt 00:00:08]} e6 {[%clk
01:31:19]} {[%emt 00:00:04]} 4. g3 {[%clk 01:31:45]} {[%emt 00:00:16]} dxc4
{[%clk 01:31:36]} {[%emt 00:00:13]} 5. Bg2 {[%clk 01:32:08]} {[%emt 00:00:07]}
a6 {[%clk 01:31:59]} {[%emt 00:00:06]} 6. O-O {[%clk 01:32:23]} {[%emt
00:00:15]} Nc6 {[%clk 01:32:21]} {[%emt 00:00:08]} 7. Qd2 {[%clk 01:32:31]}
{[%emt 00:00:23]} Bb4 {[%clk 01:32:37]} {[%emt 00:00:14]} 8. Qc2 {[%clk
01:32:53]} {[%emt 00:00:08]} b5 {[%clk 01:33:00]} {[%emt 00:00:07]} 9. Ne5
{[%clk 01:32:52]} {[%emt 00:00:30]} Nxe5 {[%clk 01:33:24]} {[%emt 00:00:06]} 10.
dxe5 {[%clk 01:33:13]} {[%emt 00:00:09]} Nd5 {[%clk 01:33:49]} {[%emt
00:00:05]} 11. Rd1 {[%clk 01:32:00]} {[%emt 00:01:43]} Qe7 {[%clk 01:30:44]}
{[%emt 00:03:34]} 12. b3 {[%clk 01:27:57]} {[%emt 00:04:34]} Bb7 {[%clk
01:20:21]} {[%emt 00:10:53]} 13. bxc4 {[%clk 01:18:37]} {[%emt 00:09:50]} Qc5
{[%clk 01:20:00]} {[%emt 00:00:50]} 14. Na3 {[%clk 00:58:02]} {[%emt 00:21:05]}
Bxa3 {[%clk 00:53:00]} {[%emt 00:27:30]} 15. Bxa3 {[%clk 00:58:23]} {[%emt
00:00:09]} Qxc4 {[%clk 00:53:15]} {[%emt 00:00:15]} 16. Qxc4 {[%clk 00:41:23]}
{[%emt 00:17:30]} bxc4 {[%clk 00:53:43]} {[%emt 00:00:01]} 17. Rdc1 {[%clk
00:40:57]} {[%emt 00:00:56]} O-O-O {[%clk 00:53:54]} {[%emt 00:00:19]} 18. Rab1
{[%clk 00:40:00]} {[%emt 00:01:27]} Nb6 {[%clk 00:52:43]} {[%emt 00:01:40]} 19.
Bc5 {[%clk 00:38:43]} {[%emt 00:01:47]} Bxg2 {[%clk 00:49:06]} {[%emt
00:04:07]} 20. Kxg2 {[%clk 00:39:08]} {[%emt 00:00:06]} Kb7 {[%clk 00:48:44]}
{[%emt 00:00:52]} 21. Rxc4 {[%clk 00:38:54]} {[%emt 00:00:44]} Rd5 {[%clk
00:35:33]} {[%emt 00:13:41]} 22. e4 {[%clk 00:32:56]} {[%emt 00:06:27]} Rd1
{[%clk 00:35:48]} {[%emt 00:00:14]} 23. Rb3 {[%clk 00:25:58]} {[%emt 00:07:28]}
Rd3 {[%clk 00:30:11]} {[%emt 00:06:07]} 24. Rxd3 {[%clk 00:26:17]} {[%emt
00:00:12]} Nxc4 {[%clk 00:30:40]} {[%emt 00:00:01]} 25. Rc3 {[%clk 00:26:32]}
{[%emt 00:00:15]} Nxe5 {[%clk 00:29:05]} {[%emt 00:02:05]} 26. Bd4 {[%clk
00:26:47]} {[%emt 00:00:14]} f6 {[%clk 00:22:31]} {[%emt 00:07:04]} 27. Bxe5
{[%clk 00:26:51]} {[%emt 00:00:26]} fxe5 {[%clk 00:23:00]} {[%emt 00:00:01]} 28.
Rc5 {[%clk 00:26:23]} {[%emt 00:00:58]} Rd8 {[%clk 00:18:11]} {[%emt 00:05:19]}
29. Rxe5 {[%clk 00:26:43]} {[%emt 00:00:10]} Rd6 {[%clk 00:18:36]} {[%emt
00:00:05]} 30. a4 {[%clk 00:24:51]} {[%emt 00:02:22]} Kb6 {[%clk 00:17:42]}
{[%emt 00:01:24]} 31. a5+ {[%clk 00:24:28]} {[%emt 00:00:52]} Kc6 {[%clk
00:18:11]} 32. h4 {[%clk 00:22:52]} {[%emt 00:02:06]} h6 {[%clk 00:18:05]}
{[%emt 00:00:37]} 33. Kh3 {[%clk 00:18:20]} {[%emt 00:05:01]} Kd7 {[%clk
00:18:24]} {[%emt 00:00:11]} 34. Kg4 {[%clk 00:18:28]} {[%emt 00:00:22]} Rd2
{[%clk 00:16:49]} {[%emt 00:02:05]} 35. f4 {[%clk 00:15:11]} {[%emt 00:03:47]}
Kd6 {[%clk 00:16:20]} {[%emt 00:00:58]} 36. Rh5 {[%clk 00:11:56]} {[%emt
00:03:45]} Rf2 {[%clk 00:14:33]} {[%emt 00:02:17]} 37. f5 {[%clk 00:08:30]}
{[%emt 00:03:56]} e5 {[%clk 00:13:30]} {[%emt 00:01:32]} 38. Kh3 {[%clk
00:08:58]} {[%emt 00:00:02]} c5 {[%clk 00:11:57]} {[%emt 00:02:03]} 39. g4
{[%clk 00:09:02]} {[%emt 00:00:26]} c4 {[%clk 00:11:58]} {[%emt 00:00:30]} 40.
f6 {[%clk 00:38:58]} {[%emt 00:00:33]} Rxf6 {[%clk 00:40:16]} {[%emt 00:02:12]}
41. g5 {[%clk 00:39:24]} {[%emt 00:00:04]} Re6 {[%clk 00:40:00]} {[%emt
00:00:46]} 42. gxh6 {[%clk 00:39:45]} {[%emt 00:00:09]} gxh6 {[%clk 00:40:26]}
{[%emt 00:00:03]} 43. Rf5 {[%clk 00:40:03]} {[%emt 00:00:13]} Kc5 {[%clk
00:40:34]} {[%emt 00:00:22]} 44. Kg4 {[%clk 00:35:38]} {[%emt 00:04:54]} Kd4
{[%clk 00:39:09]} {[%emt 00:01:56]} 45. Kf3 {[%clk 00:36:00]} {[%emt 00:00:08]}
Kd3 {[%clk 00:37:49]} {[%emt 00:01:50]} 46. Rf8 {[%clk 00:35:27]} {[%emt
00:01:03]} Rd6 {[%clk 00:36:53]} {[%emt 00:01:26]} 47. Rf5 {[%clk 00:34:00]}
{[%emt 00:01:57]} c3 {[%clk 00:36:55]} {[%emt 00:00:28]} 48. Rxe5 {[%clk
00:33:53]} {[%emt 00:00:37]} c2 {[%clk 00:37:20]} {[%emt 00:00:04]} 49. Rc5
{[%clk 00:34:19]} {[%emt 00:00:04]} Kd2 {[%clk 00:37:47]} {[%emt 00:00:04]} 50.
e5 {[%clk 00:33:17]} {[%emt 00:01:32]} Rd3+ {[%clk 00:38:12]} {[%emt 00:00:05]}
0-1

[Event "Norwegian Championship 2022"]
[Site "Kongsvinger, Norway"]
[Date "2022.07.11"]
[Round "4"]
[White "Kaasen, Tor Fredrik"]
[Black "Djurhuus, Rune"]
[Result "1-0"]
[Board "4"]
[TimeControl "40/5400+30:1800+30"]
[WhiteTitle "IM"]
[BlackTitle "GM"]
[WhiteFideId "1516647"]
[BlackFideId "1500082"]
[WhiteElo "2433"]
[BlackElo "2407"]

1. e4 {[%clk 01:30:54]} {[%emt 00:00:04]} e6 {[%clk 01:30:12]} {[%emt
00:00:49]} 2. d4 {[%clk 01:30:32]} {[%emt 00:00:51]} d5 {[%clk 01:30:38]}
{[%emt 00:00:06]} 3. Nc3 {[%clk 01:30:35]} {[%emt 00:00:26]} Bb4 {[%clk
01:31:04]} {[%emt 00:00:04]} 4. e5 {[%clk 01:30:22]} {[%emt 00:00:42]} c5
{[%clk 01:31:26]} {[%emt 00:00:10]} 5. a3 {[%clk 01:30:41]} {[%emt 00:00:12]}
Bxc3+ {[%clk 01:31:52]} {[%emt 00:00:04]} 6. bxc3 {[%clk 01:31:04]} {[%emt
00:00:06]} Qc7 {[%clk 01:31:42]} {[%emt 00:00:40]} 7. Qg4 {[%clk 01:29:59]}
{[%emt 00:01:34]} f6 {[%clk 01:31:56]} {[%emt 00:00:17]} 8. Nf3 {[%clk
01:25:21]} {[%emt 00:05:07]} Nc6 {[%clk 01:30:49]} {[%emt 00:01:38]} 9. Qg3
{[%clk 01:20:55]} {[%emt 00:04:55]} cxd4 {[%clk 01:06:36]} {[%emt 00:24:44]} 10.
cxd4 {[%clk 01:18:07]} {[%emt 00:03:17]} fxe5 {[%clk 01:04:55]} {[%emt
00:02:11]} 11. dxe5 {[%clk 01:12:32]} {[%emt 00:06:01]} Qf7 {[%clk 00:59:21]}
{[%emt 00:06:07]} 12. Bd3 {[%clk 00:51:58]} {[%emt 00:21:04]} Nge7 {[%clk
00:58:49]} {[%emt 00:01:02]} 13. Qh3 {[%clk 00:49:22]} {[%emt 00:03:06]} h6
{[%clk 00:58:21]} {[%emt 00:00:59]} 14. Rb1 {[%clk 00:45:16]} {[%emt 00:04:35]}
b6 {[%clk 00:53:21]} {[%emt 00:05:31]} 15. a4 {[%clk 00:41:12]} {[%emt
00:04:34]} Bd7 {[%clk 00:52:41]} {[%emt 00:01:10]} 16. Bd2 {[%clk 00:38:32]}
{[%emt 00:03:09]} Rc8 {[%clk 00:42:27]} {[%emt 00:10:44]} 17. a5 {[%clk
00:33:57]} {[%emt 00:05:05]} Nxa5 {[%clk 00:42:18]} {[%emt 00:00:39]} 18. Bxa5
{[%clk 00:33:39]} {[%emt 00:00:48]} bxa5 {[%clk 00:42:42]} {[%emt 00:00:06]} 19.
Rb7 {[%clk 00:33:03]} {[%emt 00:01:04]} a6 {[%clk 00:23:30]} {[%emt 00:19:44]}
20. O-O {[%clk 00:32:05]} {[%emt 00:01:26]} Rd8 {[%clk 00:21:04]} {[%emt
00:02:58]} 21. Nd4 {[%clk 00:24:39]} {[%emt 00:07:56]} O-O {[%clk 00:18:49]}
{[%emt 00:02:45]} 22. f4 {[%clk 00:20:01]} {[%emt 00:05:08]} a4 {[%clk
00:17:55]} {[%emt 00:01:24]} 23. Ra7 {[%clk 00:18:28]} {[%emt 00:02:00]} a3
{[%clk 00:15:50]} {[%emt 00:02:37]} 24. Be2 {[%clk 00:12:24]} {[%emt 00:06:34]}
Bb5 {[%clk 00:15:22]} {[%emt 00:00:57]} 25. Bxb5 {[%clk 00:11:08]} {[%emt
00:01:46]} axb5 {[%clk 00:15:45]} {[%emt 00:00:07]} 26. Qxa3 {[%clk 00:11:24]}
{[%emt 00:00:14]} Rde8 {[%clk 00:15:23]} {[%emt 00:00:53]} 27. Qd6 {[%clk
00:10:30]} {[%emt 00:01:23]} Kh7 {[%clk 00:11:20]} {[%emt 00:04:33]} 28. Nxe6
{[%clk 00:06:58]} {[%emt 00:04:01]} Rg8 {[%clk 00:10:55]} {[%emt 00:00:56]} 29.
Rf3 {[%clk 00:06:58]} {[%emt 00:00:30]} Kh8 {[%clk 00:08:07]} {[%emt 00:03:18]}
30. Ng5 {[%clk 00:06:12]} {[%emt 00:01:15]} Qf8 {[%clk 00:07:52]} {[%emt
00:00:47]} 31. Rxe7 {[%clk 00:03:52]} {[%emt 00:02:50]} Qxe7 {[%clk 00:06:15]}
{[%emt 00:02:07]} 32. Qg6 {[%clk 00:04:16]} {[%emt 00:00:05]} Qc5+ {[%clk
00:06:14]} {[%emt 00:00:32]} 33. Rf2 {[%clk 00:04:03]} {[%emt 00:00:43]} hxg5
{[%clk 00:06:35]} {[%emt 00:00:08]} 34. Qh5# {[%clk 00:04:27]} {[%emt
00:00:06]} 1-0